Workbook

Sheet Meritev
B1: Podatki o vozilu: Znamka, model:
B2: Pogon (bencin, dizel, hibrid, elekt.):
B3: Menjalnik:
B4: Število prevoženih kilometrov:
B5: Letnik:
B6: Slika:
B7: BK meritve (X/33): | C7: 1. Vozilo | E7: 2. Vozilo | G7: 3. Vozilo | I7: 4. Vozilo | K7: 5. Vozilo
A8: Št. | B8: Sestavni deli | C8: BK | D8: % | E8: BK | F8: % | G8: BK | H8: % | I8: BK | J8: % | K8: BK | L8: %
A9: 1. | B9: Vpliv na okolico | D9: =VLOOKUP(C9,Procenti!$Q$1:$R$169,2,FALSE) -> 0.0 | F9: =VLOOKUP(E9,Procenti!$Q$1:$R$169,2,FALSE) -> 0.0 | H9: =VLOOKUP(G9,Procenti!$Q$1:$R$169,2,FALSE) -> 0.0 | J9: =VLOOKUP(I9,Procenti!$Q$1:$R$169,2,FALSE) -> 0.0 | L9: =VLOOKUP(K9,Procenti!$Q$1:$R$169,2,FALSE) -> 0.0
A10: 2. | B10: Splošno stanje motorja | D10: =VLOOKUP(C10,Procenti!$Q$1:$R$169,2,FALSE) -> 0.0 | F10: =VLOOKUP(E10,Procenti!$Q$1:$R$169,2,FALSE) -> 0.0 | H10: =VLOOKUP(G10,Procenti!$Q$1:$R$169,2,FALSE) -> 0.0 | J10: =VLOOKUP(I10,Procenti!$Q$1:$R$169,2,FALSE) -> 0.0 | L10: =VLOOKUP(K10,Procenti!$Q$1:$R$169,2,FALSE) -> 0.0
A11: 3. | B11: Motor | D11: =VLOOKUP(C11,Procenti!$Q$1:$R$169,2,FALSE) -> 0.0 | F11: =VLOOKUP(E11,Procenti!$Q$1:$R$169,2,FALSE) -> 0.0 | H11: =VLOOKUP(G11,Procenti!$Q$1:$R$169,2,FALSE) -> 0.0 | J11: =VLOOKUP(I11,Procenti!$Q$1:$R$169,2,FALSE) -> 0.0 | L11: =VLOOKUP(K11,Procenti!$Q$1:$R$169,2,FALSE) -> 0.0
A12: 4. | B12: Ventili motorja (kopičenje ogljika) | D12: =VLOOKUP(C12,Procenti!$Q$1:$R$169,2,FALSE) -> 0.0 | F12: =VLOOKUP(E12,Procenti!$Q$1:$R$169,2,FALSE) -> 0.0 | H12: =VLOOKUP(G12,Procenti!$Q$1:$R$169,2,FALSE) -> 0.0 | J12: =VLOOKUP(I12,Procenti!$Q$1:$R$169,2,FALSE) -> 0.0 | L12: =VLOOKUP(K12,Procenti!$Q$1:$R$169,2,FALSE) -> 0.0
A13: 5. | B13: Zavore | D13: =VLOOKUP(C13,Procenti!$Q$1:$R$169,2,FALSE) -> 0.0 | F13: =VLOOKUP(E13,Procenti!$Q$1:$R$169,2,FALSE) -> 0.0 | H13: =VLOOKUP(G13,Procenti!$Q$1:$R$169,2,FALSE) -> 0.0 | J13: =VLOOKUP(I13,Procenti!$Q$1:$R$169,2,FALSE) -> 0.0 | L13: =VLOOKUP(K13,Procenti!$Q$1:$R$169,2,FALSE) -> 0.0
A14: 6. | B14: Krmilna veriga (delovanje kompleta) | D14: =VLOOKUP(C14,Procenti!$Q$1:$R$169,2,FALSE) -> 0.0 | F14: =VLOOKUP(E14,Procenti!$Q$1:$R$169,2,FALSE) -> 0.0 | H14: =VLOOKUP(G14,Procenti!$Q$1:$R$169,2,FALSE) -> 0.0 | J14: =VLOOKUP(I14,Procenti!$Q$1:$R$169,2,FALSE) -> 0.0 | L14: =VLOOKUP(K14,Procenti!$Q$1:$R$169,2,FALSE) -> 0.0
A15: 7. | B15: Turbina | D15: =VLOOKUP(C15,Procenti!$Q$1:$R$169,2,FALSE) -> 0.0 | F15: =VLOOKUP(E15,Procenti!$Q$1:$R$169,2,FALSE) -> 0.0 | H15: =VLOOKUP(G15,Procenti!$Q$1:$R$169,2,FALSE) -> 0.0 | J15: =VLOOKUP(I15,Procenti!$Q$1:$R$169,2,FALSE) -> 0.0 | L15: =VLOOKUP(K15,Procenti!$Q$1:$R$169,2,FALSE) -> 0.0
A16: 8. | B16: Elektronika | D16: =VLOOKUP(C16,Procenti!$Q$1:$R$169,2,FALSE) -> 0.0 | F16: =VLOOKUP(E16,Procenti!$Q$1:$R$169,2,FALSE) -> 0.0 | H16: =VLOOKUP(G16,Procenti!$Q$1:$R$169,2,FALSE) -> 0.0 | J16: =VLOOKUP(I16,Procenti!$Q$1:$R$169,2,FALSE) -> 0.0 | L16: =VLOOKUP(K16,Procenti!$Q$1:$R$169,2,FALSE) -> 0.0
A17: 9. | B17: Visokotlačna črpalka | D17: =VLOOKUP(C17,Procenti!$Q$1:$R$169,2,FALSE) -> 0.0 | F17: =VLOOKUP(E17,Procenti!$Q$1:$R$169,2,FALSE) -> 0.0 | H17: =VLOOKUP(G17,Procenti!$Q$1:$R$169,2,FALSE) -> 0.0 | J17: =VLOOKUP(I17,Procenti!$Q$1:$R$169,2,FALSE) -> 0.0 | L17: =VLOOKUP(K17,Procenti!$Q$1:$R$169,2,FALSE) -> 0.0
A18: 10. | B18: Hladilnik klime | D18: =VLOOKUP(C18,Procenti!$Q$1:$R$169,2,FALSE) -> 0.0 | F18: =VLOOKUP(E18,Procenti!$Q$1:$R$169,2,FALSE) -> 0.0 | H18: =VLOOKUP(G18,Procenti!$Q$1:$R$169,2,FALSE) -> 0.0 | J18: =VLOOKUP(I18,Procenti!$Q$1:$R$169,2,FALSE) -> 0.0 | L18: =VLOOKUP(K18,Procenti!$Q$1:$R$169,2,FALSE) -> 0.0
A19: 11. | B19: Potencialna poraba motornega olja | D19: =VLOOKUP(C19,Procenti!$Q$1:$R$169,2,FALSE) -> 0.0 | F19: =VLOOKUP(E19,Procenti!$Q$1:$R$169,2,FALSE) -> 0.0 | H19: =VLOOKUP(G19,Procenti!$Q$1:$R$169,2,FALSE) -> 0.0 | J19: =VLOOKUP(I19,Procenti!$Q$1:$R$169,2,FALSE) -> 0.0 | L19: =VLOOKUP(K19,Procenti!$Q$1:$R$169,2,FALSE) -> 0.0
A20: 12. | B20: Sklopka | D20: =VLOOKUP(C20,Procenti!$Q$1:$R$169,2,FALSE) -> 0.0 | F20: =VLOOKUP(E20,Procenti!$Q$1:$R$169,2,FALSE) -> 0.0 | H20: =VLOOKUP(G20,Procenti!$Q$1:$R$169,2,FALSE) -> 0.0 | J20: =VLOOKUP(I20,Procenti!$Q$1:$R$169,2,FALSE) -> 0.0 | L20: =VLOOKUP(K20,Procenti!$Q$1:$R$169,2,FALSE) -> 0.0
A21: 13. | B21: Karoserija | D21: =VLOOKUP(C21,Procenti!$Q$1:$R$169,2,FALSE) -> 0.0 | F21: =VLOOKUP(E21,Procenti!$Q$1:$R$169,2,FALSE) -> 0.0 | H21: =VLOOKUP(G21,Procenti!$Q$1:$R$169,2,FALSE) -> 0.0 | J21: =VLOOKUP(I21,Procenti!$Q$1:$R$169,2,FALSE) -> 0.0 | L21: =VLOOKUP(K21,Procenti!$Q$1:$R$169,2,FALSE) -> 0.0
A22: 14. | B22: Gume | D22: =VLOOKUP(C22,Procenti!$Q$1:$R$169,2,FALSE) -> 0.0 | F22: =VLOOKUP(E22,Procenti!$Q$1:$R$169,2,FALSE) -> 0.0 | H22: =VLOOKUP(G22,Procenti!$Q$1:$R$169,2,FALSE) -> 0.0 | J22: =VLOOKUP(I22,Procenti!$Q$1:$R$169,2,FALSE) -> 0.0 | L22: =VLOOKUP(K22,Procenti!$Q$1:$R$169,2,FALSE) -> 0.0
A23: 15. | B23: Baterija* (hibridno, električno vozilo) | D23: =VLOOKUP(C23,Procenti!$Q$1:$R$169,2,FALSE) -> 0.0 | F23: =VLOOKUP(E23,Procenti!$Q$1:$R$169,2,FALSE) -> 0.0 | H23: =VLOOKUP(G23,Procenti!$Q$1:$R$169,2,FALSE) -> 0.0 | J23: =VLOOKUP(I23,Procenti!$Q$1:$R$169,2,FALSE) -> 0.0 | L23: =VLOOKUP(K23,Procenti!$Q$1:$R$169,2,FALSE) -> 0.0
A24: 16. | B24: Ustrezno za nakup | D24: =VLOOKUP(C24,Procenti!$Q$1:$R$169,2,FALSE) -> 0.0 | F24: =VLOOKUP(E24,Procenti!$Q$1:$R$169,2,FALSE) -> 0.0 | H24: =VLOOKUP(G24,Procenti!$Q$1:$R$169,2,FALSE) -> 0.0 | J24: =VLOOKUP(I24,Procenti!$Q$1:$R$169,2,FALSE) -> 0.0 | L24: =VLOOKUP(K24,Procenti!$Q$1:$R$169,2,FALSE) -> 0.0
A25: 17. | D25: =VLOOKUP(C25,Procenti!$Q$1:$R$169,2,FALSE) -> 0.0 | F25: =VLOOKUP(E25,Procenti!$Q$1:$R$169,2,FALSE) -> 0.0 | H25: =VLOOKUP(G25,Procenti!$Q$1:$R$169,2,FALSE) -> 0.0 | J25: =VLOOKUP(I25,Procenti!$Q$1:$R$169,2,FALSE) -> 0.0 | L25: =VLOOKUP(K25,Procenti!$Q$1:$R$169,2,FALSE) -> 0.0
A26: 18. | D26: =VLOOKUP(C26,Procenti!$Q$1:$R$169,2,FALSE) -> 0.0 | F26: =VLOOKUP(E26,Procenti!$Q$1:$R$169,2,FALSE) -> 0.0 | H26: =VLOOKUP(G26,Procenti!$Q$1:$R$169,2,FALSE) -> 0.0 | J26: =VLOOKUP(I26,Procenti!$Q$1:$R$169,2,FALSE) -> 0.0 | L26: =VLOOKUP(K26,Procenti!$Q$1:$R$169,2,FALSE) -> 0.0
A27: 19. | D27: =VLOOKUP(C27,Procenti!$Q$1:$R$169,2,FALSE) -> 0.0 | F27: =VLOOKUP(E27,Procenti!$Q$1:$R$169,2,FALSE) -> 0.0 | H27: =VLOOKUP(G27,Procenti!$Q$1:$R$169,2,FALSE) -> 0.0 | J27: =VLOOKUP(I27,Procenti!$Q$1:$R$169,2,FALSE) -> 0.0 | L27: =VLOOKUP(K27,Procenti!$Q$1:$R$169,2,FALSE) -> 0.0
A28: 20. | D28: =VLOOKUP(C28,Procenti!$Q$1:$R$169,2,FALSE) -> 0.0 | F28: =VLOOKUP(E28,Procenti!$Q$1:$R$169,2,FALSE) -> 0.0 | H28: =VLOOKUP(G28,Procenti!$Q$1:$R$169,2,FALSE) -> 0.0 | J28: =VLOOKUP(I28,Procenti!$Q$1:$R$169,2,FALSE) -> 0.0 | L28: =VLOOKUP(K28,Procenti!$Q$1:$R$169,2,FALSE) -> 0.0

Sheet Procenti
E1: 0 | F1: =(E1/33)*100 -> 0 | G1: 0 | H1: =(0/28)*100 -> 0 | Q1: 33 | R1: 100 | S1: 0 | T1: MP4A0 | U1: =(S1/4872)*100 -> 0.000 | V1: MP1A0 | W1: =(S1/167)*100 -> 0.000
A2: A0 | B2: =(E1/168)*100 -> 0.0 | C2: A0 | D2: =(E1/24)*100 -> 0 | E2: 1 | F2: 3 | G2: 1 | H2: =(1/28)*100 -> 4 | I2: 35 | J2: =(0/7)*100 -> 0 | K2: 36 | L2: =(0/6)*100 -> 0.0 | M2: 8 | N2: =(M2/8)*100 -> 100 | O2: 11 | P2: =(O2/11)*100 -> 100 | Q2: 32 | R2: 97 | S2: 1 | T2: MP4A001 | U2: 0.021 | V2: MP1A001 | W2: 0.599
A3: A001 | B3: 0.6 | C3: A001 | D3: 4 | E3: 2 | F3: 6 | G3: 2 | H3: =(2/28)*100 -> 7 | I3: 36 | J3: =(1/7)*100 -> 14 | K3: 37 | L3: =(1/6)*100 -> 16.7 | M3: 7 | N3: 88 | O3: 10 | P3: 91 | Q3: 31 | R3: 94 | S3: 2 | T3: MP4A002 | U3: 0.041 | V3: MP1A002 | W3: 1.198
A4: A002 | B4: 1.2 | C4: A002 | D4: 8 | E4: 3 | F4: 9 | G4: 3 | H4: =(3/28)*100 -> 11 | I4: 37 | J4: =(2/7)*100 -> 29 | K4: 38 | L4: =(2/6)*100 -> 33.3 | M4: 6 | N4: 75 | O4: 9 | P4: 82 | Q4: 30 | R4: 91 | S4: 3 | T4: MP4A003 | U4: 0.062 | V4: MP1A003 | W4: 1.796
A5: A003 | B5: 1.8 | C5: A003 | D5: 13 | E5: 4 | F5: 12 | G5: 4 | H5: =(4/28)*100 -> 14 | I5: 38 | J5: =(3/7)*100 -> 43 | K5: 39 | L5: =(3/6)*100 -> 50.0 | M5: 5 | N5: 63 | O5: 8 | P5: 73 | Q5: 29 | R5: 88 | S5: 4 | T5: MP4A006 | U5: 0.082 | V5: MP1A006 | W5: 2.395
A6: A006 | B6: 2.4 | C6: A006 | D6: 17 | E6: 5 | F6: 15 | G6: 5 | H6: =(5/28)*100 -> 18 | I6: 39 | J6: =(4/7)*100 -> 57 | K6: 40 | L6: =(4/6)*100 -> 66.7 | M6: 4 | N6: 50 | O6: 7 | P6: 64 | Q6: 28 | R6: 85 | S6: 5 | T6: MP4A009 | U6: 0.103 | V6: MP1A009 | W6: 2.994
A7: A009 | B7: 3.0 | C7: A009 | D7: 21 | E7: 6 | F7: 18 | G7: 6 | H7: =(6/28)*100 -> 21 | I7: 40 | J7: =(5/7)*100 -> 71 | K7: 41 | L7: =(5/6)*100 -> 83.3 | M7: 3 | N7: 38 | O7: 6 | P7: 55 | Q7: 27 | R7: 82 | S7: 6 | T7: MP4A012 | U7: 0.123 | V7: MP1A012 | W7: 3.593
A8: A012 | B8: 3.6 | C8: A012 | D8: 25 | E8: 7 | F8: 21 | G8: 7 | H8: =(7/28)*100 -> 25 | I8: 41 | J8: =(6/7)*100 -> 86 | K8: 42 | L8: =(6/6)*100 -> 100.0 | M8: 2 | N8: 25 | O8: 5 | P8: 45 | Q8: 26 | R8: 79 | S8: 7 | T8: MP4A024 | U8: 0.144 | V8: MP1A024 | W8: 4.192
A9: A024 | B9: 4.2 | C9: A024 | D9: 29 | E9: 8 | F9: 24 | G9: 8 | H9: =(8/28)*100 -> 29 | I9: 42 | J9: =(7/7)*100 -> 100 | K9: A024 | L9: 0.0 | M9: 1 | N9: 13 | O9: 4 | P9: 36 | Q9: 25 | R9: 76 | S9: 8 | T9: MP4A036 | U9: 0.164 | V9: MP1A036 | W9: 4.790
A10: A036 | B10: 4.8 | C10: A036 | D10: 33 | E10: 9 | F10: 27 | G10: 9 | H10: =(9/28)*100 -> 32 | K10: A036 | L10: 0.6 | M10: -1 | N10: =(M10/12)*100 -> -8 | O10: 3 | P10: 27 | Q10: 24 | R10: 73 | S10: 9 | T10: MP4A048 | U10: 0.185 | V10: MP1A048 | W10: 5.389
A11: A048 | B11: 5.4 | C11: A048 | D11: 38 | E11: 10 | F11: 30 | G11: 10 | H11: =(10/28)*100 -> 36 | K11: A048 | L11: 1.3 | M11: -2 | N11: -17 | O11: 2 | P11: 18 | Q11: 23 | R11: 70 | S11: 10 | T11: MP4A096 | U11: 0.205 | V11: MP1A096 | W11: 5.988
A12: A096 | B12: 6.0 | C12: A096 | D12: 42 | E12: 11 | F12: 33 | G12: 11 | H12: =(11/28)*100 -> 39 | K12: A096 | L12: 1.9 | M12: -3 | N12: -25 | O12: 1 | P12: 9 | Q12: 22 | R12: 67 | S12: 11 | T12: MP4A144 | U12: 0.226 | V12: MP1A144 | W12: 6.587
A13: A144 | B13: 6.5 | C13: A144 | D13: 46 | E13: 12 | F13: 36 | G13: 12 | H13: =(12/28)*100 -> 43 | K13: A144 | L13: 2.5 | M13: -4 | N13: -33 | O13: 33 | P13: -9 | Q13: 21 | R13: 64 | S13: 12 | T13: MP4A192 | U13: 0.246 | V13: MP1A192 | W13: 7.186
A14: A192 | B14: 7.1 | C14: A192 | D14: 50 | E14: 13 | F14: 39 | G14: 13 | H14: =(13/28)*100 -> 46 | K14: A192 | L14: 3.1 | M14: -5 | N14: -42 | O14: 32 | P14: -18 | Q14: 20 | R14: 61 | S14: 13 | T14: MP4A384 | U14: 0.267 | V14: MP1A384 | W14: 7.784
A15: A384 | B15: 7.7 | C15: A384 | D15: 54 | E15: 14 | F15: 42 | G15: 14 | H15: =(14/28)*100 -> 50 | K15: A384 | L15: 3.8 | M15: -6 | N15: -50 | O15: 31 | P15: -27 | Q15: 19 | R15: 58 | S15: 14 | T15: MP4B0 | U15: 0.287 | V15: MP1B0 | W15: 8.383
A16: B0 | B16: 8.3 | C16: B0 | D16: 58 | E16: 15 | F16: 45 | G16: 15 | H16: =(15/28)*100 -> 54 | K16: B0 | L16: 4.4 | M16: -7 | N16: -58 | O16: 30 | P16: -36 | Q16: 18 | R16: 55 | S16: 15 | T16: MP4B001 | U16: 0.308 | V16: MP1B001 | W16: 8.982
A17: B001 | B17: 8.9 | C17: B001 | D17: 63 | E17: 16 | F17: 48 | G17: 16 | H17: =(16/28)*100 -> 57 | K17: B001 | L17: 5.0 | M17: -8 | N17: -67 | O17: 29 | P17: -45 | Q17: 17 | R17: 52 | S17: 16 | T17: MP4B002 | U17: 0.328 | V17: MP1B002 | W17: 9.581
A18: B002 | B18: 9.5 | C18: B002 | D18: 67 | E18: 17 | F18: 52 | G18: 17 | H18: =(17/28)*100 -> 61 | K18: B002 | L18: 5.6 | M18: -9 | N18: -75 | O18: 28 | P18: -55 | Q18: 16 | R18: 48 | S18: 17 | T18: MP4B003 | U18: 0.349 | V18: MP1B003 | W18: 10.180
A19: B003 | B19: 10.1 | C19: B003 | D19: 71 | E19: 18 | F19: 55 | G19: 18 | H19: =(18/28)*100 -> 64 | K19: B003 | L19: 6.3 | M19: -10 | N19: -83 | O19: 27 | P19: -64 | Q19: 15 | R19: 45 | S19: 18 | T19: MP4B006 | U19: 0.369 | V19: MP1B006 | W19: 10.778
A20: B006 | B20: 10.7 | C20: B006 | D20: 75 | E20: 19 | F20: 58 | G20: 19 | H20: =(19/28)*100 -> 68 | K20: B006 | L20: 6.9 | M20: -11 | N20: -92 | O20: 26 | P20: -73 | Q20: 14 | R20: 42 | S20: 19 | T20: MP4B009 | U20: 0.390 | V20: MP1B009 | W20: 11.377
A21: B009 | B21: 11.3 | C21: B009 | D21: 79 | E21: 20 | F21: 61 | G21: 20 | H21: =(20/28)*100 -> 71 | K21: B009 | L21: 7.5 | M21: -12 | N21: -100 | O21: 22 | P21: -82 | Q21: 13 | R21: 39 | S21: 20 | T21: MP4B012 | U21: 0.411 | V21: MP1B012 | W21: 11.976
A22: B012 | B22: 11.9 | C22: B012 | D22: 83 | E22: 21 | F22: 64 | G22: 21 | H22: =(21/28)*100 -> 75 | K22: B012 | L22: 8.1 | O22: 23 | P22: -91 | Q22: 12 | R22: 36 | S22: 21 | T22: MP4B024 | U22: 0.431 | V22: MP1B024 | W22: 12.575
A23: B024 | B23: 12.5 | C23: B024 | D23: 88 | E23: 22 | F23: 67 | G23: 22 | H23: =(22/28)*100 -> 79 | K23: B024 | L23: 8.8 | O23: 24 | P23: -100 | Q23: 11 | R23: 33 | S23: 22 | T23: MP4B036 | U23: 0.452 | V23: MP1B036 | W23: 13.174
A24: B036 | B24: 13.1 | C24: B036 | D24: 92 | E24: 23 | F24: 70 | G24: 23 | H24: =(23/28)*100 -> 82 | K24: B036 | L24: 9.4 | O24: 25 | P24: 0 | Q24: 10 | R24: 30 | S24: 23 | T24: MP4B048 | U24: 0.472 | V24: MP1B048 | W24: 13.772
A25: B048 | B25: 13.7 | C25: B048 | D25: 96 | E25: 24 | F25: 73 | G25: 24 | H25: =(24/28)*100 -> 86 | K25: B048 | L25: 10.0 | Q25: 9 | R25: 27 | S25: 24 | T25: MP4B096 | U25: =(S24/4872)*100 -> 0.472 | V25: MP1B096 | W25: 14.371
A26: B096 | B26: 14.3 | C26: B096 | D26: 100 | E26: 25 | F26: 76 | G26: 25 | H26: =(25/28)*100 -> 89 | K26: B096 | L26: 10.6 | Q26: 8 | R26: 24 | S26: 25 | T26: MP4B144 | U26: =(S26/4872)*100 -> 0.513 | V26: MP1B144 | W26: 14.970
A27: B144 | B27: 14.9 | E27: 26 | F27: 79 | G27: 26 | H27: =(26/28)*100 -> 93 | K27: B144 | L27: 11.3 | Q27: 7 | R27: 21 | S27: 26 | T27: MP4B192 | U27: 0.534 | V27: MP1B192 | W27: 15.569
A28: B192 | B28: 15.5 | E28: 27 | F28: 82 | G28: 27 | H28: =(27/28)*100 -> 96 | K28: B192 | L28: 11.9 | Q28: 6 | R28: 18 | S28: 27 | T28: MP4B384 | U28: 0.554 | V28: MP1B384 | W28: 16.168
A29: B384 | B29: 16.1 | E29: 28 | F29: 85 | G29: 28 | H29: =(28/28)*100 -> 100 | K29: B384 | L29: 12.5 | Q29: 5 | R29: 15 | S29: 28 | T29: MP4C0 | U29: 0.575 | V29: MP1C0 | W29: 16.766
A30: C0 | B30: 16.7 | E30: 29 | F30: 88 | K30: C0 | L30: 13.1 | Q30: 4 | R30: 12 | S30: 29 | T30: MP4C001 | U30: 0.595 | V30: MP1C001 | W30: 17.365
A31: C001 | B31: 17.3 | E31: 30 | F31: 91 | K31: C001 | L31: 13.8 | Q31: 3 | R31: 9 | S31: 30 | T31: MP4C002 | U31: 0.616 | V31: MP1C002 | W31: 17.964
A32: C002 | B32: 17.9 | E32: 31 | F32: 94 | K32: C002 | L32: 14.4 | Q32: 2 | R32: 6 | S32: 31 | T32: MP4C003 | U32: 0.636 | V32: MP1C003 | W32: 18.563
A33: C003 | B33: 18.5 | E33: 32 | F33: 97 | K33: C003 | L33: 15.0 | Q33: 1 | R33: 3 | S33: 32 | T33: MP4C004 | U33: 0.657 | V33: MP1C004 | W33: 19.162
A34: C006 | B34: 19.0 | E34: 33 | F34: 100 | K34: C006 | L34: 15.6 | Q34: 0 | R34: 0 | S34: 33 | T34: MP4C009 | U34: 0.677 | V34: MP1C009 | W34: 19.760
A35: C009 | B35: 19.6 | E35: 34 | K35: C009 | L35: 16.3 | Q35: -1 | R35: -4 | S35: 34 | T35: MP4C012 | U35: 0.698 | V35: MP1C012 | W35: 20.359
A36: C012 | B36: 20.2 | E36: 35 | K36: C012 | L36: 16.9 | Q36: -2 | R36: -7 | S36: 35 | T36: MP4C024 | U36: 0.718 | V36: MP1C024 | W36: 20.958
A37: C024 | B37: 20.8 | E37: 36 | K37: C024 | L37: 17.5 | Q37: -3 | R37: -11 | S37: 36 | T37: MP4C034 | U37: 0.739 | V37: MP1C034 | W37: 21.557
A38: C036 | B38: 21.4 | E38: 37 | K38: C036 | L38: 18.1 | Q38: -4 | R38: -14 | S38: 37 | T38: MP4C048 | U38: 0.759 | V38: MP1C048 | W38: 22.156
A39: C048 | B39: 22.0 | E39: 38 | K39: C048 | L39: 18.8 | Q39: -5 | R39: -18 | S39: 38 | T39: MP4C094 | U39: 0.780 | V39: MP1C094 | W39: 22.754
A40: C096 | B40: 22.6 | E40: 39 | K40: C096 | L40: 19.4 | Q40: -6 | R40: -21 | S40: 39 | T40: MP4C144 | U40: 0.800 | V40: MP1C144 | W40: 23.353
A41: C144 | B41: 23.2 | E41: 40 | K41: C144 | L41: 20.0 | Q41: -7 | R41: -25 | S41: 40 | T41: MP4C192 | U41: 0.821 | V41: MP1C192 | W41: 23.952
A42: C192 | B42: 23.8 | E42: 41 | K42: C192 | L42: 20.6 | Q42: -8 | R42: -29 | S42: 41 | T42: MP4C384 | U42: 0.842 | V42: MP1C384 | W42: 24.551
A43: C384 | B43: 24.4 | E43: 42 | K43: C384 | L43: 21.3 | Q43: -9 | R43: -32 | S43: 42 | T43: MP4D0 | U43: 0.862 | V43: MP1D0 | W43: 25.150
A44: D0 | B44: 25.0 | E44: 43 | K44: D0 | L44: 21.9 | Q44: -10 | R44: -36 | S44: 43 | T44: MP4D001 | U44: 0.883 | V44: MP1D001 | W44: 25.749
A45: D001 | B45: 25.6 | E45: 44 | K45: D001 | L45: 22.5 | Q45: -11 | R45: -39 | S45: 44 | T45: MP4D002 | U45: 0.903 | V45: MP1D002 | W45: 26.347
A46: D002 | B46: 26.2 | E46: 45 | K46: D002 | L46: 23.1 | Q46: -12 | R46: -43 | S46: 45 | T46: MP4D003 | U46: 0.924 | V46: MP1D003 | W46: 26.946
A47: D003 | B47: 26.8 | E47: 46 | K47: D003 | L47: 23.8 | Q47: -13 | R47: -46 | S47: 46 | T47: MP4D006 | U47: 0.944 | V47: MP1D006 | W47: 27.545
A48: D006 | B48: 27.4 | E48: 47 | K48: D006 | L48: 24.4 | Q48: -14 | R48: -50 | S48: 47 | T48: MP4D009 | U48: 0.965 | V48: MP1D009 | W48: 28.144
A49: D009 | B49: 28.0 | E49: 48 | K49: D009 | L49: 25.0 | Q49: -15 | R49: -54 | S49: 48 | T49: MP4D012 | U49: 0.985 | V49: MP1D012 | W49: 28.743
A50: D012 | B50: 28.6 | E50: 49 | K50: D012 | L50: 25.6 | Q50: -16 | R50: -57 | S50: 49 | T50: MP4D024 | U50: 1.006 | V50: MP1D024 | W50: 29.341
A51: D024 | B51: 29.2 | E51: 50 | K51: D024 | L51: 26.3 | Q51: -17 | R51: -61 | S51: 50 | T51: MP4D036 | U51: 1.026 | V51: MP1D036 | W51: 29.940
A52: D036 | B52: 29.8 | E52: 51 | K52: D036 | L52: 26.9 | Q52: -18 | R52: -64 | S52: 51 | T52: MP4D048 | U52: 1.047 | V52: MP1D048 | W52: 30.539
A53: D048 | B53: 30.4 | E53: 52 | K53: D048 | L53: 27.5 | Q53: -19 | R53: -68 | S53: 52 | T53: MP4D096 | U53: 1.067 | V53: MP1D096 | W53: 31.138
A54: D096 | B54: 31.0 | E54: 53 | K54: D096 | L54: 28.1 | Q54: -20 | R54: -71 | S54: 53 | T54: MP4D144 | U54: 1.088 | V54: MP1D144 | W54: 31.737
A55: D144 | B55: 31.5 | E55: 54 | K55: D144 | L55: 28.8 | Q55: -21 | R55: -75 | S55: 54 | T55: MP4D192 | U55: 1.108 | V55: MP1D192 | W55: 32.335
A56: D192 | B56: 32.1 | E56: 55 | K56: D192 | L56: 29.4 | Q56: -22 | R56: -79 | S56: 55 | T56: MP4D384 | U56: 1.129 | V56: MP1D384 | W56: 32.934
A57: D384 | B57: 32.7 | E57: 56 | K57: D384 | L57: 30.0 | Q57: -23 | R57: -82 | S57: 56 | T57: MP4E0 | U57: 1.149 | V57: MP1E0 | W57: 33.533
A58: E0 | B58: 33.3 | E58: 57 | K58: E0 | L58: 30.6 | Q58: -24 | R58: -86 | S58: 57 | T58: MP4E001 | U58: 1.170 | V58: MP1E001 | W58: 34.132
A59: E001 | B59: 33.9 | E59: 58 | K59: E001 | L59: 31.3 | Q59: -25 | R59: -89 | S59: 58 | T59: MP4E002 | U59: 1.190 | V59: MP1E002 | W59: 34.731
A60: E002 | B60: 34.5 | E60: 59 | K60: E002 | L60: 31.9 | Q60: -26 | R60: -93 | S60: 59 | T60: MP4E003 | U60: 1.211 | V60: MP1E003 | W60: 35.329
A61: E003 | B61: 35.1 | E61: 60 | K61: E003 | L61: 32.5 | Q61: -27 | R61: -96 | S61: 60 | T61: MP4E006 | U61: 1.232 | V61: MP1E006 | W61: 35.928
A62: E006 | B62: 35.7 | E62: 61 | K62: E006 | L62: 33.1 | Q62: -28 | R62: -100 | S62: 61 | T62: MP4E009 | U62: 1.252 | V62: MP1E009 | W62: 36.527
A63: E009 | B63: 36.3 | E63: 62 | K63: E009 | L63: 33.8 | S63: 62 | T63: MP4E012 | U63: 1.273 | V63: MP1E012 | W63: 37.126
A64: E012 | B64: 36.9 | E64: 63 | K64: E012 | L64: 34.4 | S64: 63 | T64: MP4E024 | U64: 1.293 | V64: MP1E024 | W64: 37.725
A65: E024 | B65: 37.5 | E65: 64 | K65: E024 | L65: 35.0 | S65: 64 | T65: MP4E036 | U65: 1.314 | V65: MP1E036 | W65: =(S65/167)*100 -> 38.323
A66: E036 | B66: =(E65/168)*100 -> 38.1 | E66: 65 | K66: E036 | L66: 35.6 | S66: 65 | T66: MP4E048 | U66: 1.334 | V66: MP1E048 | W66: 38.922
A67: E048 | B67: 38.7 | E67: 66 | K67: E048 | L67: 36.3 | S67: 66 | T67: MP4E096 | U67: 1.355 | V67: MP1E096 | W67: 39.521
A68: E096 | B68: 39.3 | E68: 67 | K68: E096 | L68: 36.9 | S68: 67 | T68: MP4E144 | U68: 1.375 | V68: MP1E144 | W68: 40.120
A69: E144 | B69: 39.9 | E69: 68 | K69: E144 | L69: 37.5 | S69: 68 | T69: MP4E192 | U69: 1.396 | V69: MP1E192 | W69: 40.719
A70: E192 | B70: 40.5 | E70: 69 | K70: E192 | L70: 38.1 | S70: 69 | T70: MP4E384 | U70: 1.416 | V70: MP1E384 | W70: 41.317
A71: E384 | B71: 41.1 | E71: 70 | K71: E384 | L71: 38.8 | S71: 70 | T71: MP4F0 | U71: =(S70/4872)*100 -> 1.416 | V71: MP1F0 | W71: 41.916
A72: F0 | B72: 41.7 | E72: 71 | K72: F0 | L72: 39.4 | S72: 71 | T72: MP4F001 | U72: =(S72/4872)*100 -> 1.457 | V72: MP1F001 | W72: 42.515
A73: F001 | B73: 42.3 | E73: 72 | K73: F001 | L73: 40.0 | S73: 72 | T73: MP4F002 | U73: 1.478 | V73: MP1F002 | W73: 43.114
A74: F002 | B74: 42.9 | E74: 73 | K74: F002 | L74: 40.6 | S74: 73 | T74: MP4F003 | U74: 1.498 | V74: MP1F003 | W74: 43.713
A75: F003 | B75: 43.5 | E75: 74 | K75: F003 | L75: 41.3 | S75: 74 | T75: MP4F006 | U75: 1.519 | V75: MP1F006 | W75: 44.311
A76: F006 | B76: 44.0 | E76: 75 | K76: F006 | L76: 41.9 | S76: 75 | T76: MP4F009 | U76: 1.539 | V76: MP1F009 | W76: 44.910
A77: F009 | B77: 44.6 | E77: 76 | K77: F009 | L77: 42.5 | S77: 76 | T77: MP4F012 | U77: 1.560 | V77: MP1F012 | W77: 45.509
A78: F012 | B78: 45.2 | E78: 77 | K78: F012 | L78: 43.1 | S78: 77 | T78: MP4F024 | U78: 1.580 | V78: MP1F024 | W78: 46.108
A79: F024 | B79: 45.8 | E79: 78 | K79: F024 | L79: 43.8 | S79: 78 | T79: MP4F036 | U79: 1.601 | V79: MP1F036 | W79: 46.707
A80: F036 | B80: 46.4 | E80: 79 | K80: F036 | L80: 44.4 | S80: 79 | T80: MP4F048 | U80: 1.622 | V80: MP1F048 | W80: 47.305
A81: F048 | B81: 47.0 | E81: 80 | K81: F048 | L81: 45.0 | S81: 80 | T81: MP4F096 | U81: =(S80/4872)*100 -> 1.622 | V81: MP1F096 | W81: 47.904
A82: F096 | B82: 47.6 | E82: 81 | K82: F096 | L82: 45.6 | S82: 81 | T82: MP4F144 | U82: =(S82/4872)*100 -> 1.663 | V82: MP1F144 | W82: 48.503
A83: F144 | B83: 48.2 | E83: 82 | K83: F144 | L83: 46.3 | S83: 82 | T83: MP4F192 | U83: 1.683 | V83: MP1F192 | W83: 49.102
A84: F192 | B84: 48.8 | E84: 83 | K84: F192 | L84: 46.9 | S84: 83 | T84: MP4F384 | U84: 1.704 | V84: MP1F384 | W84: 49.701
A85: F384 | B85: 49.4 | E85: 84 | K85: F384 | L85: 47.5 | S85: 84 | T85: MP4G0 | U85: 1.724 | V85: MP1G0 | W85: 50.299
A86: G0 | B86: 50.0 | E86: 85 | K86: G0 | L86: 48.1 | S86: 85 | T86: MP4G001 | U86: 1.745 | V86: MP1G001 | W86: 50.898
A87: G001 | B87: 50.6 | E87: 86 | K87: G001 | L87: 48.8 | S87: 86 | T87: MP4G002 | U87: 1.765 | V87: MP1G002 | W87: 51.497
A88: G002 | B88: 51.2 | E88: 87 | K88: G002 | L88: 49.4 | S88: 87 | T88: MP4G003 | U88: 1.786 | V88: MP1G003 | W88: 52.096
A89: G003 | B89: 51.8 | E89: 88 | K89: G003 | L89: 50.0 | S89: 88 | T89: MP4G004 | U89: 1.806 | V89: MP1G004 | W89: 52.695
A90: G006 | B90: 52.4 | E90: 89 | K90: G006 | L90: 50.6 | S90: 89 | T90: MP4G009 | U90: 1.827 | V90: MP1G009 | W90: 53.293
A91: G009 | B91: 53.0 | E91: 90 | K91: G009 | L91: 51.3 | S91: 90 | T91: MP4G012 | U91: 1.847 | V91: MP1G012 | W91: 53.892
A92: G012 | B92: 53.6 | E92: 91 | K92: G012 | L92: 51.9 | S92: 91 | T92: MP4G024 | U92: 1.868 | V92: MP1G024 | W92: 54.491
A93: G024 | B93: 54.2 | E93: 92 | K93: G024 | L93: 52.5 | S93: 92 | T93: MP4G034 | U93: 1.888 | V93: MP1G034 | W93: 55.090
A94: G036 | B94: 54.8 | E94: 93 | K94: G036 | L94: 53.1 | S94: 93 | T94: MP4G048 | U94: 1.909 | V94: MP1G048 | W94: 55.689
A95: G048 | B95: 55.4 | E95: 94 | K95: G048 | L95: 53.8 | S95: 94 | T95: MP4G094 | U95: 1.929 | V95: MP1G094 | W95: 56.287
A96: G096 | B96: 56.0 | E96: 95 | K96: G096 | L96: 54.4 | S96: 95 | T96: MP4G144 | U96: 1.950 | V96: MP1G144 | W96: 56.886
A97: G144 | B97: 56.5 | E97: 96 | K97: G144 | L97: 55.0 | S97: 96 | T97: MP4G192 | U97: 1.970 | V97: MP1G192 | W97: 57.485
A98: G192 | B98: 57.1 | E98: 97 | K98: G192 | L98: 55.6 | S98: 97 | T98: MP4G384 | U98: 1.991 | V98: MP1G384 | W98: 58.084
A99: G384 | B99: 57.7 | E99: 98 | K99: G384 | L99: 56.3 | S99: 98 | T99: MP4H0 | U99: 2.011 | V99: MP1H0 | W99: 58.683
A100: H0 | B100: 58.3 | E100: 99 | K100: H0 | L100: 56.9 | S100: 99 | T100: MP4H001 | U100: 2.032 | V100: MP1H001 | W100: 59.281
A101: H001 | B101: 58.9 | E101: 100 | K101: H001 | L101: 57.5 | S101: 100 | T101: MP4H002 | U101: 2.053 | V101: MP1H002 | W101: 59.880
A102: H002 | B102: 59.5 | E102: 101 | K102: H002 | L102: 58.1 | S102: 101 | T102: MP4H003 | U102: 2.073 | V102: MP1H003 | W102: 60.479
A103: H003 | B103: 60.1 | E103: 102 | K103: H003 | L103: 58.8 | S103: 102 | T103: MP4H006 | U103: 2.094 | V103: MP1H006 | W103: 61.078
A104: H006 | B104: 60.7 | E104: 103 | K104: H006 | L104: 59.4 | S104: 103 | T104: MP4H009 | U104: 2.114 | V104: MP1H009 | W104: 61.677
A105: H009 | B105: 61.3 | E105: 104 | K105: H009 | L105: 60.0 | S105: 104 | T105: MP4H012 | U105: 2.135 | V105: MP1H012 | W105: 62.275
A106: H012 | B106: 61.9 | E106: 105 | K106: H012 | L106: 60.6 | S106: 105 | T106: MP4H024 | U106: 2.155 | V106: MP1H024 | W106: 62.874
A107: H024 | B107: 62.5 | E107: 106 | K107: H024 | L107: 61.3 | S107: 106 | T107: MP4H036 | U107: 2.176 | V107: MP1H036 | W107: 63.473
A108: H036 | B108: 63.1 | E108: 107 | K108: H036 | L108: 61.9 | S108: 107 | T108: MP4H048 | U108: 2.196 | V108: MP1H048 | W108: 64.072
A109: H048 | B109: 63.7 | E109: 108 | K109: H048 | L109: 62.5 | S109: 108 | T109: MP4H096 | U109: 2.217 | V109: MP1H096 | W109: 64.671
A110: H096 | B110: 64.3 | E110: 109 | K110: H096 | L110: 63.1 | S110: 109 | T110: MP4H144 | U110: 2.237 | V110: MP1H144 | W110: 65.269
A111: H144 | B111: 64.9 | E111: 110 | K111: H144 | L111: 63.8 | S111: 110 | T111: MP4H192 | U111: 2.258 | V111: MP1H192 | W111: 65.868
A112: H192 | B112: 65.5 | E112: 111 | K112: H192 | L112: 64.4 | S112: 111 | T112: MP4H384 | U112: 2.278 | V112: MP1H384 | W112: 66.467
A113: H384 | B113: 66.1 | E113: 112 | K113: H384 | L113: 65.0 | S113: 112 | T113: MP4I0 | U113: 2.299 | V113: MP1I0 | W113: 67.066
A114: I0 | B114: 66.7 | E114: 113 | K114: I0 | L114: 65.6 | S114: 113 | T114: MP4I001 | U114: 2.319 | V114: MP1I001 | W114: 67.665
A115: I001 | B115: 67.3 | E115: 114 | K115: I001 | L115: 66.3 | S115: 114 | T115: MP4I002 | U115: 2.340 | V115: MP1I002 | W115: 68.263
A116: I002 | B116: 67.9 | E116: 115 | K116: I002 | L116: 66.9 | S116: 115 | T116: MP4I003 | U116: 2.360 | V116: MP1I003 | W116: 68.862
A117: I003 | B117: 68.5 | E117: 116 | K117: I003 | L117: 67.5 | S117: 116 | T117: MP4I006 | U117: 2.381 | V117: MP1I006 | W117: 69.461
A118: I006 | B118: 69.0 | E118: 117 | K118: I006 | L118: 68.1 | S118: 117 | T118: MP4I009 | U118: 2.401 | V118: MP1I009 | W118: 70.060
A119: I009 | B119: 69.6 | E119: 118 | K119: I009 | L119: 68.8 | S119: 118 | T119: MP4I012 | U119: 2.422 | V119: MP1I012 | W119: 70.659
A120: I012 | B120: 70.2 | E120: 119 | K120: I012 | L120: 69.4 | S120: 119 | T120: MP4I024 | U120: 2.443 | V120: MP1I024 | W120: 71.257
A121: I024 | B121: 70.8 | E121: 120 | K121: I024 | L121: 70.0 | S121: 120 | T121: MP4I036 | U121: 2.463 | V121: MP1I036 | W121: 71.856
A122: I036 | B122: 71.4 | E122: 121 | K122: I036 | L122: 70.6 | S122: 121 | T122: MP4I048 | U122: 2.484 | V122: MP1I048 | W122: 72.455
A123: I048 | B123: 72.0 | E123: 122 | K123: I048 | L123: 71.3 | S123: 122 | T123: MP4I096 | U123: 2.504 | V123: MP1I096 | W123: 73.054
A124: I096 | B124: 72.6 | E124: 123 | K124: I096 | L124: 71.9 | S124: 123 | T124: MP4I144 | U124: 2.525 | V124: MP1I144 | W124: 73.653
A125: I144 | B125: 73.2 | E125: 124 | K125: I144 | L125: 72.5 | S125: 124 | T125: MP4I192 | U125: 2.545 | V125: MP1I192 | W125: 74.251
A126: I192 | B126: 73.8 | E126: 125 | K126: I192 | L126: 73.1 | S126: 125 | T126: MP4I384 | U126: 2.566 | V126: MP1I384 | W126: 74.850
A127: I384 | B127: 74.4 | E127: 126 | K127: I384 | L127: 73.8 | S127: 126 | T127: MP4J0 | U127: 2.586 | V127: MP1J0 | W127: 75.449
A128: J0 | B128: 75.0 | E128: 127 | K128: J0 | L128: 74.4 | S128: 127 | T128: MP4J001 | U128: 2.607 | V128: MP1J001 | W128: 76.048
A129: J001 | B129: 75.6 | E129: 128 | K129: J001 | L129: 75.0 | S129: 128 | T129: MP4J002 | U129: 2.627 | V129: MP1J002 | W129: =(S129/167)*100 -> 76.647
A130: J002 | B130: =(E129/168)*100 -> 76.2 | E130: 129 | K130: J002 | L130: 75.6 | S130: 129 | T130: MP4J003 | U130: 2.648 | V130: MP1J003 | W130: 77.246
A131: J003 | B131: 76.8 | E131: 130 | K131: J003 | L131: 76.3 | S131: 130 | T131: MP4J006 | U131: 2.668 | V131: MP1J006 | W131: 77.844
A132: J006 | B132: 77.4 | E132: 131 | K132: J006 | L132: 76.9 | S132: 131 | T132: MP4J009 | U132: 2.689 | V132: MP1J009 | W132: 78.443
A133: J009 | B133: 78.0 | E133: 132 | K133: J009 | L133: 77.5 | S133: 132 | T133: MP4J012 | U133: 2.709 | V133: MP1J012 | W133: 79.042
A134: J012 | B134: 78.6 | E134: 133 | K134: J012 | L134: 78.1 | S134: 133 | T134: MP4J024 | U134: 2.730 | V134: MP1J024 | W134: 79.641
A135: J024 | B135: 79.2 | E135: 134 | K135: J024 | L135: 78.8 | S135: 134 | T135: MP4J036 | U135: 2.750 | V135: MP1J036 | W135: 80.240
A136: J036 | B136: 79.8 | E136: 135 | K136: J036 | L136: 79.4 | S136: 135 | T136: MP4J048 | U136: 2.771 | V136: MP1J048 | W136: 80.838
A137: J048 | B137: 80.4 | E137: 136 | K137: J048 | L137: 80.0 | S137: 136 | T137: MP4J096 | U137: 2.791 | V137: MP1J096 | W137: 81.437
A138: J096 | B138: 81.0 | E138: 137 | K138: J096 | L138: 80.6 | S138: 137 | T138: MP4J144 | U138: 2.812 | V138: MP1J144 | W138: 82.036
A139: J144 | B139: 81.5 | E139: 138 | K139: J144 | L139: 81.3 | S139: 138 | T139: MP4J192 | U139: 2.833 | V139: MP1J192 | W139: 82.635
A140: J192 | B140: 82.1 | E140: 139 | K140: J192 | L140: 81.9 | S140: 139 | T140: MP4J384 | U140: 2.853 | V140: MP1J384 | W140: 83.234
A141: J384 | B141: 82.7 | E141: 140 | K141: J384 | L141: 82.5 | S141: 140 | T141: MP4K0 | U141: 2.874 | V141: MP1K0 | W141: 83.832
A142: K0 | B142: 83.3 | E142: 141 | K142: K0 | L142: 83.1 | S142: 141 | T142: MP4K001 | U142: 2.894 | V142: MP1K001 | W142: 84.431
A143: K001 | B143: 83.9 | E143: 142 | K143: K001 | L143: 83.8 | S143: 142 | T143: MP4K002 | U143: 2.915 | V143: MP1K002 | W143: 85.030
A144: K002 | B144: 84.5 | E144: 143 | K144: K002 | L144: 84.4 | S144: 143 | T144: MP4K003 | U144: 2.935 | V144: MP1K003 | W144: 85.629
A145: K003 | B145: 85.1 | E145: 144 | K145: K003 | L145: 85.0 | S145: 144 | T145: MP4K006 | U145: 2.956 | V145: MP1K006 | W145: 86.228
A146: K006 | B146: 85.7 | E146: 145 | K146: K006 | L146: 85.6 | S146: 145 | T146: MP4K009 | U146: =(S146/4872)*100 -> 2.976 | V146: MP1K009 | W146: 86.826
A147: K009 | B147: 86.3 | E147: 146 | K147: K009 | L147: 86.3 | S147: 146 | T147: MP4K012 | U147: 2.997 | V147: MP1K012 | W147: 87.425
A148: K012 | B148: 86.9 | E148: 147 | K148: K012 | L148: 86.9 | S148: 147 | T148: MP4K024 | U148: 3.017 | V148: MP1K024 | W148: 88.024
A149: K024 | B149: 87.5 | E149: 148 | K149: K024 | L149: 87.5 | S149: 148 | T149: MP4K036 | U149: 3.038 | V149: MP1K036 | W149: 88.623
A150: K036 | B150: 88.1 | E150: 149 | K150: K036 | L150: 88.1 | S150: 149 | T150: MP4K048 | U150: 3.058 | V150: MP1K048 | W150: 89.222
A151: K048 | B151: 88.7 | E151: 150 | K151: K048 | L151: 88.8 | S151: 150 | T151: MP4K096 | U151: 3.079 | V151: MP1K096 | W151: 89.820
A152: K096 | B152: 89.3 | E152: 151 | K152: K096 | L152: 89.4 | S152: 151 | T152: MP4K144 | U152: 3.099 | V152: MP1K144 | W152: 90.419
A153: K144 | B153: 89.9 | E153: 152 | K153: K144 | L153: 90.0 | S153: 152 | T153: MP4K192 | U153: 3.120 | V153: MP1K192 | W153: 91.018
A154: K192 | B154: 90.5 | E154: 153 | K154: K192 | L154: 90.6 | S154: 153 | T154: MP4K384 | U154: 3.140 | V154: MP1K384 | W154: 91.617
A155: K384 | B155: 91.1 | E155: 154 | K155: K384 | L155: 91.3 | S155: 154 | T155: MP4L0 | U155: 3.161 | V155: MP1L0 | W155: 92.216
A156: L0 | B156: 91.7 | E156: 155 | K156: L0 | L156: 91.9 | S156: 155 | T156: MP4L001 | U156: 3.181 | V156: MP1L001 | W156: 92.814
A157: L001 | B157: 92.3 | E157: 156 | K157: L001 | L157: 92.5 | S157: 156 | T157: MP4L002 | U157: 3.202 | V157: MP1L002 | W157: 93.413
A158: L002 | B158: 92.9 | E158: 157 | K158: L002 | L158: 93.1 | S158: 157 | T158: MP4L003 | U158: 3.222 | V158: MP1L003 | W158: 94.012
A159: L003 | B159: 93.5 | E159: 158 | K159: L003 | L159: 93.8 | S159: 158 | T159: MP4L006 | U159: 3.243 | V159: MP1L006 | W159: 94.611
A160: L006 | B160: 94.0 | E160: 159 | K160: L006 | L160: 94.4 | S160: 159 | T160: MP4L009 | U160: 3.264 | V160: MP1L009 | W160: 95.210
A161: L009 | B161: 94.6 | E161: 160 | K161: L009 | L161: 95.0 | S161: 160 | T161: MP4L012 | U161: 3.284 | V161: MP1L012 | W161: 95.808
A162: L012 | B162: 95.2 | E162: 161 | K162: L012 | L162: 95.6 | S162: 161 | T162: MP4L024 | U162: 3.305 | V162: MP1L024 | W162: 96.407
A163: L024 | B163: 95.8 | E163: 162 | K163: L024 | L163: 96.3 | S163: 162 | T163: MP4L036 | U163: 3.325 | V163: MP1L036 | W163: 97.006
A164: L036 | B164: 96.4 | E164: 163 | K164: L036 | L164: 96.9 | S164: 163 | T164: MP4L048 | U164: 3.346 | V164: MP1L048 | W164: 97.605
A165: L048 | B165: 97.0 | E165: 164 | K165: L048 | L165: 97.5 | S165: 164 | T165: MP4L096 | U165: 3.366 | V165: MP1L096 | W165: 98.204
A166: L096 | B166: 97.6 | E166: 165 | K166: L096 | L166: 98.1 | S166: 165 | T166: MP4L144 | U166: 3.387 | V166: MP1L144 | W166: 98.802
A167: L144 | B167: 98.2 | E167: 166 | K167: L144 | L167: 98.8 | S167: 166 | T167: MP4L192 | U167: 3.407 | V167: MP1L192 | W167: 99.401
A168: L192 | B168: 98.8 | E168: 167 | K168: L192 | L168: 99.4 | S168: 167 | T168: MP4L384 | U168: 3.428 | V168: MP1L384 | W168: 100.000
A169: L384 | B169: 99.4 | E169: 168 | K169: L384 | L169: 100.0 | S169: 168 | T169: MP5A0 | U169: 3.448
S170: 169 | T170: MP5A001 | U170: 3.469
S171: 170 | T171: MP5A002 | U171: 3.489
S172: 171 | T172: MP5A003 | U172: 3.510
S173: 172 | T173: MP5A006 | U173: 3.530
S174: 173 | T174: MP5A009 | U174: 3.551
S175: 174 | T175: MP5A012 | U175: 3.571
S176: 175 | T176: MP5A024 | U176: 3.592
S177: 176 | T177: MP5A036 | U177: 3.612
S178: 177 | T178: MP5A048 | U178: 3.633
S179: 178 | T179: MP5A096 | U179: 3.654
S180: 179 | T180: MP5A144 | U180: 3.674
S181: 180 | T181: MP5A192 | U181: 3.695
S182: 181 | T182: MP5A384 | U182: 3.715
S183: 182 | T183: MP5B0 | U183: 3.736
S184: 183 | T184: MP5B001 | U184: 3.756
S185: 184 | T185: MP5B002 | U185: 3.777
S186: 185 | T186: MP5B003 | U186: 3.797
S187: 186 | T187: MP5B006 | U187: 3.818
S188: 187 | T188: MP5B009 | U188: 3.838
S189: 188 | T189: MP5B012 | U189: 3.859
S190: 189 | T190: MP5B024 | U190: 3.879
S191: 190 | T191: MP5B036 | U191: 3.900
S192: 191 | T192: MP5B048 | U192: 3.920
S193: 192 | T193: MP5B096 | U193: 3.941
S194: 193 | T194: MP5B144 | U194: 3.961
S195: 194 | T195: MP5B192 | U195: 3.982
S196: 195 | T196: MP5B384 | U196: 4.002
S197: 196 | T197: MP5C0 | U197: 4.023
S198: 197 | T198: MP5C001 | U198: 4.044
S199: 198 | T199: MP5C002 | U199: 4.064
S200: 199 | T200: MP5C003 | U200: 4.085
... 4672 more rows
